Cogmind - Beta 11.1 @@@ ROGUE MODE // 2022.06.25 @ 08:55:23 Player: Demise Result: Destroyed by G-47 Trooper with Particle Gun Performance ------------- Evolutions (0) 0 Regions Visited (1) 200 Robots Destroyed (31) 155 Value Destroyed (623) 623 Prototype IDs (2) 40 Alien Tech Used (0) 0 Bonus (0) 0 TOTAL SCORE: 1018 Bonus ------- None Cogmind --------- Core Integrity 0/250 Matter 282/300 Energy 100/100 System Corruption 1% Temperature Hot (243) Movement Rolling (110) Ox2 Location -10/Materials Parts ------- > --- POWER (1) -------- (None) > --- PROPULSION (2) --- Wheel > --- UTILITY (2) ------ Improved Heat Sink Large Storage Unit > --- WEAPON (2) ------- Medium Laser > --- INVENTORY (15) --- Wheel Signal Interpreter Signal Interpreter Seismic Detector Light Armor Plating Light Armor Plating Hacking Suite Light EM Pulse Cannon Light EM Pulse Cannon Grenade Launcher Grenade Launcher Peak State ------------ > --- POWER ------------ Light Nuclear Core > --- PROPULSION ------- Wheel Wheel > --- UTILITY ---------- Improved Heat Sink Medium Storage Unit > --- WEAPON ----------- Medium Laser Light Assault Rifle > --- INVENTORY -------- Ion Engine Wheel Wheel Signal Interpreter Signal Interpreter Seismic Detector Utility Shielding Light Armor Plating Grenade Launcher Grenade Launcher [Rating: 12] Favorites ----------- Power Light Nuclear Core Engine Ion Engine Power Core Light Nuclear Core Propulsion Wheel Wheel Wheel Utility Large Storage Unit Device Improved Heat Sink Storage Large Storage Unit Processor Signal Interpreter Protection Utility Shielding Weapon Medium Laser Energy Gun Medium Laser Ballistic Gun Light Assault Rifle Launcher Grenade Launcher Build | -11 -10 ------- Run | Scr Mat Slots Evolved . | . . Power . | . . Propulsion . | . . Utility . | . . Weapon . | . . Parts Attached 27 | 8 19 Power 2 | 1 1 Engine 1 | 1 . Core 1 | . 1 Reactor . | . . Propulsion 8 | 2 6 Treads . | . . Leg . | . . Wheel 8 | 2 6 Hover . | . . Flight . | . . Utility 11 | 3 8 Device 5 | 2 3 Storage 3 | 1 2 Processor 1 | . 1 Hackware . | . . Protection 2 | . 2 Artifact . | . . Weapon 6 | 2 4 Energy Gun 3 | 1 2 Energy Cannon . | . . Ballistic Gun 2 | 1 1 Ballistic Cannon . | . . Launcher 1 | . 1 Special Weapon . | . . Impact Weapon . | . . Slashing Weapon . | . . Piercing Weapon . | . . Special Melee Weapon . | . . Unidentified Prototypes . | . . Parts Lost 7 | . 7 Power 1 | . 1 Propulsion 4 | . 4 Utility . | . . Weapon 2 | . 2 Highest Loss Streak 3 | . 3 To Critical Strikes . | . . Average Slot Usage (%) 98 | . 98 Engine 6 | . 6 Core 7 | . 7 Wheel 27 | . 27 Device 7 | . 7 Storage 14 | . 14 Protection 5 | . 5 Energy Gun 13 | . 13 Ballistic Gun 13 | . 13 Naked Turns . | . . Heaviest Build 29 | 14 29 Greatest Support 20 | 20 20 Greatest Overweight (x) 2 | 1 2 Average Overweight (x) . | . . Largest Inventory Capacity 15 | 8 15 Average Capacity 10 | 5 11 Most Carried 11 | 5 11 Average Carried 8 | 3 9 Final Capacity 15 | 8 15 Final Carried 11 | 5 11 Class Distribution -------------------- 100% | Mutant Dominant Class ---------------- Mutant | -10/Materials Resources | -11 -10 ----------- Run | Scr Mat Matter Collected 538 | 294 244 Remotely . | . . Salvage Created 1010 | 235 775 Parts 55 | 16 39 Haulers Intercepted 2 | . 2 Recyclers Shooed 1 | 1 . Parts Field Recycled . | . . Retrieved Matter . | . . Parts Self-Destructed . | . . Prevented . | . . Kills | -11 -10 ------- Run | Scr Mat Combat Hostiles Destroyed 14 | . 14 Guns 11 | . 11 AOE 3 | . 3 Classes Destroyed 7 | 3 4 Worker 3 | 2 1 Tunneler 5 | 5 . Hauler 2 | . 2 Recycler 2 | 1 1 Operator 3 | . 3 Watcher 2 | . 2 Grunt 14 | . 14 Best Kill Streak 7 | 4 7 Combat Bots Only 7 | . 7 Max Kills in Single Turn 3 | 1 3 Gunslinging . | . . Exploded 3 | . 3 Melee . | . . Uniques/NPCs Destroyed . | . . Combat | -11 -10 -------- Run | Scr Mat Damage Taken 857 | . 857 Core 257 | . 257 Absorbed by Shields . | . . Redirected to Shielding 6 | . 6 Core Remaining (%) 100 | 100 . Volleys Fired 90 | 14 76 Largest 2 | 2 2 Hottest 80 | 70 80 Shots Fired 172 | 28 144 Gun 170 | 28 142 Cannon . | . . Launcher 2 | . 2 Special . | . . Kinetic 84 | 14 70 Thermal 86 | 14 72 Explosive 2 | . 2 Electromagnetic . | . . Robot Hit Streak 10 | 4 10 Robot Miss Streak 7 | 2 7 Penetration Max . | . . Secondary Targets 1 | . 1 Max Gunslinging Chain 1 | . 1 Shots Hit Robots 101 | 16 85 Core Hits 56 | 10 46 Critical Kills . | . . Critical Parts Destroyed . | . . Critical Strikes 5 | . 5 Burn 5 | . 5 Melee Attacks . | . . Impact . | . . Slashing . | . . Piercing . | . . Sneak Attacks . | . . Combat Hostiles . | . . Follow-up Attacks . | . . Damage Inflicted 1441 | 182 1259 Guns 1062 | 182 880 Cannons . | . . Explosions 379 | . 379 Melee . | . . Ramming . | . . Kinetic 381 | 58 323 Thermal 681 | 124 557 Explosive 379 | . 379 Electromagnetic . | . . Impact . | . . Slashing . | . . Piercing . | . . Highest Corruption 1 | . 1 Average Corruption 1 | . 1 Corruption Purged . | . . Corruption Blocked . | . . Effects 4 | . 4 Matter Fused 2 | . 2 Heat Flow Errors 1 | . 1 Energy Discharges 1 | . 1 Overload Shots . | . . Overflow Damage 4 | . 4 Projectiles . | . . Explosions 4 | . 4 Melee . | . . Knockbacks . | . . Impact . | . . Kinetic . | . . Secondary . | . . Self-Inflicted Damage . | . . Shots . | . . Rammed . | . . Targets Rammed . | . . Kicked . | . . Crushed . | . . Highest Temperature 373 | 120 373 Average Temperature 97 | 46 106 Received Heat Transfer 501 | . 501 Effects 1 | . 1 Energy Bleed 1 | . 1 Siege Activations . | . . Robots Corrupted . | . . Combat Hostiles . | . . Parts Fried . | . . Impact Corruptions . | . . Robots Melted . | . . Combat Hostiles . | . . Parts Melted 5 | . 5 Heat Transferred 2405 | 370 2035 Parts Sabotaged . | . . Parts Stolen . | . . Parts Stripped . | . . Power Chain Reactions . | . . Missiles Intercepted . | . . Alert | -11 -10 ------- Run | Scr Mat Peak Influence 331 | 40 331 Initial 26 | . 26 Average 152 | 17 170 Maximum Alert Level 1 | . 1 Low Security (%) 64 | 100 59 Level 1 35 | . 40 Level 2 . | . . Level 3 . | . . Level 4 . | . . Level 5 . | . . High Security . | . . Max Security . | . . Squads Dispatched 8 | . 8 Investigation 4 | . 4 Extermination . | . . Reinforcement 4 | . 4 Assault . | . . Garrison . | . . Intercept . | . . Searches Triggered . | . . Construction Impeded . | . . Haulers Reinforced . | . . Active Scanning Responses . | . . Cargo Convoy Interrupts . | . . Stealth | -11 -10 --------- Run | Scr Mat Distress Signals . | . . Communications Jammed . | . . Distress Signals . | . . Times Spotted 30 | . 30 Peak Tracking Total 8 | . 8 Tactical Retreats 1 | . 1 Traps | -11 -10 ------- Run | Scr Mat Traps Triggered 1 | . 1 Indirectly . | . . Trap Hack Attempts . | . . Triggered . | . . Disarmed . | . . Reprogrammed . | . . Reused . | . . Traps Extracted . | . . Installed . | . . Triggered . | . . Machines | -11 -10 ---------- Run | Scr Mat Machines Disabled . | . . Max in Single Turn . | . . Machines Sabotaged . | . . Garrisons Compromised . | . . Overloaded Fab Kills . | . . Hacking | -11 -10 --------- Run | Scr Mat Machines Accessed 6 | . 6 Terminals 4 | . 4 Fabricators . | . . Repair Stations 1 | . 1 Recycling Units 1 | . 1 Scanalyzers . | . . Garrison Access . | . . Total Hacks 19 | . 19 Successful 7 | . 7 Failed 12 | . 12 Catastrophic . | . . Database Lockouts . | . . Manual 13 | . 13 Terminals 13 | . 13 Fabricators . | . . Repair Stations 3 | . 3 Recycling Units 3 | . 3 Scanalyzers . | . . Garrison Access . | . . Terminal Hacks 2 | . 2 Robot Analysis 1 | . 1 Prototype ID Bank 1 | . 1 Fabricator Hacks . | . . Repair Station Hacks 1 | . 1 Scan Component 1 | . 1 Recycling Unit Hacks . | . . Scanalyzer . | . . Garrison Access Hacks . | . . Unauthorized Hacks 4 | . 4 Terminals 4 | . 4 Botnet 3 | . 3 Operators 1 | . 1 Fabricators . | . . Repair Stations . | . . Recycling Units . | . . Scanalyzers . | . . Garrison Access . | . . Data Cores Recovered . | . . Used . | . . Hacking Detections 6 | . 6 Full Trace Events 5 | . 5 Feedback Events 1 | . 1 Corruption 1 | . 1 Feedback Blocked . | . . Robot Schematics Acquired . | . . Robots Built . | . . Authchips . | . . Time . | . . Total Robot Build Rating . | . . Part Schematics Acquired . | . . Parts Built . | . . Authchips . | . . Time . | . . Total Part Build Rating . | . . Parts Repaired . | . . Time . | . . Parts Recycled . | . . Recycled Matter . | . . Retrieved Matter . | . . Retrieved Components . | . . Parts Scanalyzed . | . . Part Schematics Acquired . | . . Parts Damaged . | . . Bothacking | -11 -10 ------------ Run | Scr Mat Used RIF Installer . | . . Robots Hacked . | . . Non-combat . | . . Combat . | . . Robot Hacks Applied . | . . Relay Couplers Released . | . . Fabnet Peak Effective % . | . . Robots Rewired . | . . Allies Hacked . | . . Hacks Repelled . | . . Allies | -11 -10 -------- Run | Scr Mat Total Allies . | . . Largest Group . | . . Highest-Rated Group . | . . Highest-Rated Ally . | . . Total Orders . | . . Ally Attacks . | . . Total Damage . | . . Kills . | . . Allies Corrupted . | . . Allies Melted . | . . Intel | -11 -10 ------- Run | Scr Mat Robot Analysis Total 1 | . 1 Derelict Logs Recovered . | . . Drone Launches . | . . Drone Recoveries . | . . Exploration | -11 -10 ------------- Run | Scr Mat Turns Passed 928 | 110 818 Spaces Moved 695 | 68 627 Core 22 | 22 . Treads . | . . Legs . | . . Wheels 673 | 46 627 Hover . | . . Flight . | . . Fastest Speed 50 | 50 80 Average Speed 85 | 71 86 Slowest Speed 110 | 100 110 Overloaded Moves . | . . Propulsion Burnouts . | . . Robots Hopped . | . . Cave-ins Triggered . | . . Exploration Rate (%) 47 | 3 92 Regions Visited 1 Branch Regions . Pre-discovered Areas . | . . Known Exits Taken . | . . Unknown Exits Taken 1 | 1 . Scrap Searched . | . . Spaces Dug . | . . Terrain Destroyed 10 | . 10 Melee . | . . Projectile . | . . AOE 10 | . 10 Terrain Rammed . | . . Walls Destroyed . | . . Machines Disabled . | . . Actions | -11 -10 --------- Run | Scr Mat Total 874 | 102 772 Wait 27 | 3 24 Move 694 | 67 627 Hop . | . . Pick Up 22 | 9 13 Fast Attach 5 | 3 2 Attach 9 | 4 5 Detach 3 | . 3 Swap 13 | 1 12 Drop 11 | 1 10 Fire 90 | 14 76 Melee . | . . Ram . | . . Kick . | . . Crush . | . . Escape Stasis . | . . Rewire . | . . Trap . | . . Miscellaneous . | . . Route ------- -11/Scrapyard -10/Materials (discovered 5 exits: *Mat x3 / *Min x2) History --------- Turn | Location | Event 2 | -11/Scrapyard | Met Revision 17 8 | -11/Scrapyard | Discovered new exit (range 15) 111 | -11/Scrapyard | Entered Materials 224 | -10/Materials | Discovered new exit (range 16) 315 | -10/Materials | Build established: Mutant 451 | -10/Materials | Core integrity fell below 50% 487 | -10/Materials | Lost 3 parts (2n1w) 499 | -10/Materials | Destroyed 7 combat bots 543 | -10/Materials | Discovered new exit (range 5) 760 | -10/Materials | Discovered new exit (range 15) 768 | -10/Materials | Discovered new exit (range 8) 797 | -10/Materials | Identified exit to Materials 814 | -10/Materials | Identified exit to Mines 855 | -10/Materials | Discovered exit to Mines (range 15) 905 | -10/Materials | Core integrity fell below 20% 929 | -10/Materials | Destroyed by G-47 Trooper with Particle Gun Last Messages --------------- 00844_ Lgt. Ion Engine melted. 00844_ W-16 Scout destroyed. 00846_ Acquired 23 matter. 00848_ Acquired Signal Interpreter. 00855_ EXIT=FOUND: MINES 00859_ System corrupted: Matter fused (-5). 00881_ System corrupted: Heat flow error (+240). 00898_ ALERT: Hostiles spotted, dispatching reinforcements to Terminal M006. 00909_ G-34 Mercenary suffers critical hit (Burn). 00910_ G-34 Mercenary heat spikes uncontrollably. 00910_ G-34 Mercenary overheating. 00911_ G-34 Mercenary heat damages Aluminum Leg. 00911_ G-34 Mercenary overheating. 00911_ Aluminum Leg melted. 00911_ G-34 Mercenary destroyed. 00919_ Lgt. Assault Rifle destroyed. 00925_ G-47 Trooper suffers critical hit (Burn). 00927_ Wheel destroyed. 00928_ Overheating: Energy bleed (-19). 00928_ Lgt. Nuclear Core destroyed. Map ----- +----------------------------------------------------+ | #+#### ################## #??????????? | | # #???????? # #??????????? | | # #???????# """ # ##?????????? | | # #???????# """ # #?????????? | | !! # #???????# """ + < #?????????? | | ! # #???????# # #?????????? | | [ # #???????# """ %# #####?????????? | | ###### #???????#! """ # #?????????????? | | ?????# #???????# """ # #?????????????? | | ###### #???????# # % #????########?? | | #????????######### #????# ! #?? | | #????????????????# #????# #?? | | #????????????????# #????#= """#?? | | ######T###????????????????# ###????# """#?? | | ?????###??????????????????# #??????# ! """#?? | | ##?#####??????????????????# #???????? ??? | | T #??????????????????# ###########+#???? | | """ #??????????????????# #???? | | """ #??????????????????# ######## #???? | | """ #??????????????????# #??????# #???? | | #??????########????# #?######+#???? | | !! #??????# ???# #?# #???? | | !! #??????# ###g ### #???? | | ! #??????# # + """ #???? | | ! #??????# !g% # """ #???? | | ###+#########?# #@ + """ #???? | | #?# ??###### # #???? | | #?# ?????????# #####+##???? | | #?# ??????????# #??# #????? | | ## #### #?##???????????# #?# #????? | | # #???? #??????????????# #?# #????? | | # #????? #??????????????# > #?# ????? | | # #?????????????????????# #?# ????? | | #####?????????????????????#"" ""#?# #???? | | #?????????????????????????##"|||"##?# #???? | | #????????????o?????????????##"""##??# #???? | | ##???????????????????????????#####???####???? | | ????????????????????????????????????????????? | | ????????????????????????????????????????????? | | ????????????????????????????????????????????? | | ????????????????????????????????????????????? | | ????????????????????????????????????????????? | | ????????????????????????????????????????????? | | ????????????????????????????????????????????? | | ????????????????????????????????????????????? | | ????????????????????????????????????????????? | | | | | | | | | +----------------------------------------------------+ Best States ------------- Heat Dissipation 39 Energy Generation 14 Energy Capacity 250 Matter Stores 300 Matter Capacity 300 Sight Range 16 Terrain Scan Density 10 Armor Coverage 150 Utility Shielding 33 Evasion (%) 50 Item Schematics ----------------- None Robot Schematics ------------------ None Fabricated ------------ Nothing Alien Tech Used ----------------- None Achievements -------------- None Challenges ------------ None Game ------ Seed CannonRagnarokNanosword Manual? 0 Play Time 00:07:58 Cumulative 644.8 hours Start 2022.06.25 @ 08:47:36 End 2022.06.25 @ 08:55:23 Sessions 1 Manual Loads 0 Difficulty Rogue Special Mode None Game No. 524 Rogue 524 Adventurer 0 Explorer 0 Win Type - Total 8 Types 7/0/0/1/0/0/0/0/0 Lore% 75 Gallery% 86 Achievement% 69 Wizard Run 0 Options --------- ASCII 0 Keyboard 1 Movement Numpad Keybinds 0 Fullscreen 1 Font 12/Terminus Map View 83x54 Tactical HUD 1 Map Filters NONE Filters NONE Steam 1 RUN: 7a8bf035-71dd-4e02-b157-2acd69cb7c0d